lending/lending_fUSD_20241103
["ID","MTS","AMOUNT","RATE_DAILY","PERIOD"]
[341210029,1730646695541,-152.47,0.000401,31]
[341210030,1730646695554,-152.47,0.000401,31]
[341210031,1730646695566,-152.47,0.000401,31]
[341210032,1730646695577,-152.47,0.000401,31]
[341210033,1730646695589,-1488.5,0.00040273,2]
[341210034,1730646695600,-956.1,0.00040273,7]
[341210035,1730646695615,-619.75223068,0.00040273,2]
[341210036,1730646695627,-906.58,0.00040273,2]
[341210037,1730646695639,-500.0,0.00040273,2]
[341210038,1730646695651,-500.0,0.00040273,2]
[341210039,1730646695664,-500.0,0.00040273,2]
[341210040,1730646695677,-244.91256491,0.00040273,2]
[341210041,1730646695689,-500.0,0.00040273,2]
[341210042,1730646695701,-521.83306326,0.00040273,2]
[341210043,1730646695713,-500.0,0.00040273,2]
[341210044,1730646695725,-500.0,0.00040273,2]
[341210045,1730646695737,-500.0,0.00040273,2]
[341210046,1730646695749,-416.94912556,0.00040273,2]
[341210047,1730646695761,-500.0,0.00040273,2]
[341210048,1730646695773,-500.0,0.00040273,2]
[341210049,1730646695784,-1281.51,0.00040273,2]
[341210050,1730646695797,-250.0,0.00040273,2]
[341210051,1730646695809,-188.99106731,0.00040273,2]
[341210052,1730646695820,-500.0,0.00040273,2]
[341210053,1730646695833,-500.0,0.00040273,2]
[341210054,1730646695846,-500.0,0.00040273,2]
[341210055,1730646695858,-798.34,0.00040273,2]
[341210056,1730646695872,-500.0,0.00040273,2]
[341210057,1730646695884,-500.0,0.00040273,2]
[341210058,1730646695896,-1672.57,0.00040273,2]
[341210059,1730646695908,-500.0,0.00040273,2]
[341210060,1730646695920,-500.0,0.00040273,2]
[341210061,1730646695932,-500.0,0.00040273,2]
[341210062,1730646695944,-500.0,0.00040273,2]
[341210063,1730646695956,-162.10991416,0.00040273,2]
[341210064,1730646695968,-500.0,0.00040273,2]
[341210065,1730646695979,-500.0,0.00040273,2]
[341210066,1730646695991,-500.0,0.00040273,2]
[341210067,1730646696003,-500.0,0.00040273,2]
[341210068,1730646696015,-500.0,0.00040273,2]
[341210069,1730646696027,-503.91,0.00040273,2]
[341210070,1730646696038,-500.0,0.00040273,2]
[341210071,1730646696050,-500.0,0.00040273,2]
[341210072,1730646696062,-513.38,0.00040273,2]
[341210073,1730646696074,-500.0,0.00040273,2]
[341210074,1730646696086,-500.0,0.00040273,2]
[341210075,1730646696097,-2000.0,0.00040273,2]
[341210076,1730646696109,-500.0,0.00040273,2]
[341210077,1730646696124,-500.0,0.00040273,2]
[341210078,1730646696136,-500.0,0.00040273,2]
[341210079,1730646696147,-500.0,0.00040273,2]
[341210080,1730646696159,-1147.15,0.00040273,2]
[341210081,1730646696171,-908.15,0.00040273,2]
[341210082,1730646696182,-500.0,0.00040273,2]
[341210083,1730646696194,-10956.67,0.00040273,2]
[341210084,1730646696205,-500.0,0.00040273,2]
[341210085,1730646696216,-500.0,0.00040273,2]
[341210086,1730646696227,-500.0,0.00040273,2]
[341210087,1730646696239,-500.0,0.00040273,2]
[341210088,1730646696252,-602.99,0.00040273,2]
[341210089,1730646696263,-691.73,0.00040273,2]
[341210090,1730646696274,-769.94,0.00040273,2]
[341210091,1730646696285,-500.0,0.00040273,2]
[341210092,1730646696297,-500.0,0.00040273,2]
[341210093,1730646696309,-500.0,0.00040273,2]
[341210094,1730646696324,-500.0,0.00040273,2]
[341210095,1730646696336,-500.0,0.00040273,2]
[341210096,1730646696348,-660.29,0.00040273,2]
[341210097,1730646696360,-500.0,0.00040273,2]
[341210098,1730646696373,-684.44,0.00040273,2]
[341210099,1730646696385,-500.0,0.00040273,2]
[341210100,1730646696397,-3893.36,0.00040273,2]
[341210101,1730646696410,-500.0,0.00040273,2]
[341210102,1730646696619,-627.36,0.00040273,2]
[341210103,1730646696633,-1238.57,0.00040273,2]
[341210104,1730646696643,-1845.76,0.00040273,2]
[341210105,1730646696653,-500.0,0.00040273,2]
[341210106,1730646696662,-963.64,0.00040273,2]
[341210107,1730646696671,-2000.0,0.00040273,30]
[341210108,1730646696680,-500.0,0.00040273,2]
[341210109,1730646696690,-500.0,0.00040273,2]
[341210110,1730646696700,-500.0,0.00040273,2]
[341210111,1730646696710,-500.0,0.00040273,2]
[341210112,1730646696720,-5855.7,0.00040273,2]
[341210113,1730646696729,-1805.52,0.00040273,2]
[341210114,1730646696739,-1176.28,0.00040273,2]
[341210115,1730646696748,-602.78,0.00040273,2]
[341210116,1730646696758,-500.0,0.00040273,2]
[341210117,1730646696767,-500.0,0.00040273,2]
[341210118,1730646696777,-500.0,0.00040273,2]
[341210119,1730646696787,-1152.43,0.00040273,2]
[341210120,1730646696796,-500.0,0.00040273,2]
[341210121,1730646696806,-1221.41,0.00040273,2]
[341210122,1730646696815,-3349.02,0.00040273,2]
[341210123,1730646696824,-1633.72,0.00040273,2]
[341210124,1730646696833,-500.0,0.00040273,2]
[341210125,1730646696843,-1238.48,0.00040273,2]
[341210126,1730646696852,-500.0,0.00040273,2]
[341210127,1730646696864,-500.0,0.00040273,2]
[341210128,1730646696874,-500.0,0.00040273,2]
[341210129,1730646696883,-3905.42,0.00040273,2]
[341210130,1730646696892,-500.0,0.00040273,2]
[341210131,1730646696902,-1373.97,0.00040273,2]
[341210132,1730646696911,-500.0,0.00040273,2]
[341210133,1730646696921,-220.68652,0.00040288,7]
[341210134,1730646696930,-1143.52295314,0.0004029,2]
[341210135,1730646696940,-7339.42509484,0.0004039,2]
[341210136,1730646696950,-2176.7190093,0.0004039,2]
[341210137,1730646696960,-220.68652,0.00040488,7]
[341210138,1730646696971,-650.0,0.00040512,4]
[341210139,1730646696980,-1488.5,0.00040547,2]
[341210140,1730646696990,-956.1,0.00040547,7]
[341210141,1730646696999,-906.58,0.00040547,2]
[341210142,1730646697008,-366.77697407,0.00040547,2]
[341210143,1730646697017,-500.0,0.00040547,2]
[341210144,1730646697027,-500.0,0.00040547,2]
[341210145,1730646697036,-638.47121626,0.00040547,2]
[341210146,1730646697045,-500.0,0.00040547,2]
[341210147,1730646697054,-500.0,0.00040547,2]
[341210148,1730646697064,-500.0,0.00040547,2]
[341210149,1730646697074,-205.73141095,0.00040547,2]
[341210150,1730646697083,-500.0,0.00040547,2]
[341210151,1730646697093,-1281.51,0.00040547,2]
[341210152,1730646697102,-250.0,0.00040547,2]
[341210153,1730646697115,-500.0,0.00040547,2]
[341210154,1730646697124,-500.0,0.00040547,2]
[341210155,1730646697133,-500.0,0.00040547,2]
[341210156,1730646697142,-798.34,0.00040547,2]
[341210157,1730646697152,-500.0,0.00040547,2]
[341210158,1730646697162,-500.0,0.00040547,2]
[341210159,1730646697171,-1672.57,0.00040547,2]
[341210160,1730646697180,-291.61476254,0.00040547,2]
[341210161,1730646697189,-500.0,0.00040547,2]
[341210162,1730646697198,-293.42551824,0.00040547,2]
[341210163,1730646697208,-500.0,0.00040547,2]
[341210164,1730646697217,-500.0,0.00040547,2]
[341210165,1730646697226,-500.0,0.00040547,2]
[341210166,1730646697235,-500.0,0.00040547,2]
[341210167,1730646697244,-500.0,0.00040547,2]
[341210168,1730646697254,-500.0,0.00040547,2]
[341210169,1730646697263,-503.91,0.00040547,2]
[341210170,1730646697272,-500.0,0.00040547,2]
[341210171,1730646697282,-500.0,0.00040547,2]
[341210172,1730646697291,-513.38,0.00040547,2]
[341210173,1730646697301,-493.88498371,0.00040547,2]
[341210174,1730646697311,-500.0,0.00040547,2]
[341210175,1730646697324,-2000.0,0.00040547,2]
[341210176,1730646697333,-500.0,0.00040547,2]
[341210177,1730646697342,-500.0,0.00040547,2]
[341210178,1730646697352,-500.0,0.00040547,2]
[341210179,1730646697361,-265.26920127,0.00040547,2]
[341210180,1730646697372,-1147.15,0.00040547,2]
[341210181,1730646697381,-908.15,0.00040547,2]
[341210182,1730646697390,-272.39335461,0.00040547,2]
[341210183,1730646697399,-10956.67,0.00040547,2]
[341210184,1730646697409,-500.0,0.00040547,2]
[341210185,1730646697418,-500.0,0.00040547,2]
[341210186,1730646697427,-500.0,0.00040547,2]
[341210187,1730646697437,-500.0,0.00040547,2]
[341210188,1730646697446,-602.99,0.00040547,2]
[341210189,1730646697455,-691.73,0.00040547,2]
[341210190,1730646697464,-769.94,0.00040547,2]
[341210191,1730646697473,-500.0,0.00040547,2]
[341210192,1730646697483,-500.0,0.00040547,2]
[341210193,1730646697492,-500.0,0.00040547,2]
[341210194,1730646697501,-372.70208253,0.00040547,2]
[341210195,1730646697511,-500.0,0.00040547,2]
[341210196,1730646697521,-660.29,0.00040547,2]
[341210197,1730646697530,-500.0,0.00040547,2]
[341210198,1730646697544,-684.44,0.00040547,2]
[341210199,1730646697553,-500.0,0.00040547,2]
[341210200,1730646697563,-3893.36,0.00040547,2]
[341210201,1730646697573,-500.0,0.00040547,2]
[341210202,1730646697583,-627.36,0.00040547,2]
[341210203,1730646697592,-1238.57,0.00040547,2]
[341210204,1730646697602,-1845.76,0.00040547,2]
[341210205,1730646697611,-211.47336845,0.00040547,2]
[341210206,1730646697623,-963.64,0.00040547,2]
[341210207,1730646697633,-2000.0,0.00040547,30]
[341210208,1730646697642,-500.0,0.00040547,2]
[341210209,1730646697652,-500.0,0.00040547,2]
[341210210,1730646697662,-500.0,0.00040547,2]
[341210211,1730646697671,-334.70992036,0.00040547,2]
[341210212,1730646697680,-5855.7,0.00040547,2]
[341210213,1730646697690,-1805.52,0.00040547,2]
[341210214,1730646697699,-602.78,0.00040547,2]
[341210215,1730646697708,-275.09375566,0.00040547,2]
[341210216,1730646697717,-1176.28,0.00040547,2]
[341210217,1730646697727,-500.0,0.00040547,2]
[341210218,1730646697737,-500.0,0.00040547,2]
[341210219,1730646697746,-500.0,0.00040547,2]
[341210220,1730646697755,-1152.43,0.00040547,2]
[341210221,1730646697766,-1221.41,0.00040547,2]
[341210222,1730646697776,-3349.02,0.00040547,2]
[341210223,1730646697785,-1633.72,0.00040547,2]
[341210224,1730646697795,-500.0,0.00040547,2]
[341210225,1730646697803,-1238.48,0.00040547,2]
[341210226,1730646697813,-500.0,0.00040547,2]
[341210227,1730646697822,-500.0,0.00040547,2]
[341210228,1730646697832,-500.0,0.00040547,2]
[341210229,1730646697844,-3905.42,0.00040547,2]
[341210230,1730646697855,-500.0,0.00040547,2]
[341210231,1730646697867,-1373.97,0.00040547,2]
[341210232,1730646697876,-500.0,0.00040547,2]
[341210233,1730646697885,-220.68652,0.00040688,7]
[341210234,1730646697894,-2931.52757029,0.00040771,15]
[341210235,1730646697904,-98921.28459821,0.0004079,2]
[341210236,1730646697913,-475.58498937,0.000408,120]
[341210237,1730646697922,-1488.5,0.00040821,2]
[341210238,1730646697931,-956.1,0.00040821,7]
[341210239,1730646697941,-906.58,0.00040821,2]
[341210240,1730646697950,-500.0,0.00040821,2]
[341210241,1730646697960,-500.0,0.00040821,2]
[341210242,1730646697970,-500.0,0.00040821,2]
[341210243,1730646697980,-500.0,0.00040821,2]
[341210244,1730646697990,-500.0,0.00040821,2]
[341210245,1730646698002,-500.0,0.00040821,2]
[341210246,1730646698014,-1281.51,0.00040821,2]
[341210247,1730646698026,-250.0,0.00040821,2]
[341210248,1730646698036,-500.0,0.00040821,2]
[341210249,1730646698045,-635.70902738,0.00040821,2]
[341210250,1730646698056,-500.0,0.00040821,2]
[341210251,1730646698065,-798.34,0.00040821,2]
[341210252,1730646698075,-500.0,0.00040821,2]
[341210253,1730646698084,-500.0,0.00040821,2]
[341210254,1730646698093,-1672.57,0.00040821,2]
[341210255,1730646698102,-500.0,0.00040821,2]
[341210256,1730646698112,-500.0,0.00040821,2]
[341210257,1730646698121,-500.0,0.00040821,2]
[341210258,1730646698131,-500.0,0.00040821,2]
[341210259,1730646698140,-500.0,0.00040821,2]
[341210260,1730646698152,-500.0,0.00040821,2]
[341210261,1730646698162,-500.0,0.00040821,2]
[341210262,1730646698172,-503.91,0.00040821,2]
[341210263,1730646698182,-500.0,0.00040821,2]
[341210264,1730646698191,-500.0,0.00040821,2]
[341210265,1730646698200,-513.38,0.00040821,2]
[341210266,1730646698209,-500.0,0.00040821,2]
[341210267,1730646698219,-2000.0,0.00040821,2]
[341210268,1730646698228,-500.0,0.00040821,2]
[341210269,1730646698238,-500.0,0.00040821,2]
[341210270,1730646698247,-503.15495356,0.00040821,2]
[341210271,1730646698256,-1147.15,0.00040821,2]
[341210272,1730646698267,-908.15,0.00040821,2]
[341210273,1730646698278,-10956.67,0.00040821,2]
[341210274,1730646698287,-500.0,0.00040821,2]
[341210275,1730646698297,-500.0,0.00040821,2]
[341210276,1730646698306,-416.73589658,0.00040821,2]
[341210277,1730646698317,-500.0,0.00040821,2]
[341210278,1730646698329,-602.99,0.00040821,2]
[341210279,1730646698338,-691.73,0.00040821,2]
[341210280,1730646698349,-500.0,0.00040821,2]
[341210281,1730646698359,-318.32497856,0.00040821,2]
[341210282,1730646698373,-769.94,0.00040821,2]
[341210283,1730646698384,-500.0,0.00040821,2]
[341210284,1730646698394,-500.0,0.00040821,2]
[341210285,1730646698405,-660.29,0.00040821,2]
[341210286,1730646698415,-164.75640374,0.00040821,2]
[341210287,1730646698425,-684.44,0.00040821,2]
[341210288,1730646698435,-500.0,0.00040821,2]
[341210289,1730646698445,-3893.36,0.00040821,2]
[341210290,1730646698455,-500.0,0.00040821,2]
[341210291,1730646698465,-627.36,0.00040821,2]
[341210292,1730646698476,-1238.57,0.00040821,2]
[341210293,1730646698486,-1845.76,0.00040821,2]
[341210294,1730646698496,-963.64,0.00040821,2]
[341210295,1730646698505,-2000.0,0.00040821,30]
[341210296,1730646698515,-500.0,0.00040821,2]
[341210297,1730646698525,-500.0,0.00040821,2]
[341210298,1730646698534,-500.0,0.00040821,2]
[341210299,1730646698544,-5855.7,0.00040821,2]
[341210300,1730646698553,-1805.52,0.00040821,2]
[341210301,1730646698563,-602.78,0.00040821,2]
[341210302,1730646698571,-1176.28,0.00040821,2]
[341210303,1730646698581,-500.0,0.00040821,2]
[341210304,1730646698590,-500.0,0.00040821,2]
[341210305,1730646698599,-500.0,0.00040821,2]
[341210306,1730646698608,-1152.43,0.00040821,2]
[341210307,1730646698622,-1221.41,0.00040821,2]
[341210308,1730646698632,-3349.02,0.00040821,2]
[341210309,1730646698642,-1633.72,0.00040821,2]
[341210310,1730646698651,-207.01689001,0.00040821,2]
[341210311,1730646698661,-1238.48,0.00040821,2]
[341210312,1730646698670,-500.0,0.00040821,2]
[341210313,1730646698680,-500.0,0.00040821,2]
[341210314,1730646698689,-500.0,0.00040821,2]
[341210315,1730646698698,-3905.42,0.00040821,2]
[341210316,1730646698708,-500.0,0.00040821,2]
[341210317,1730646698718,-1373.97,0.00040821,2]
[341210318,1730646698727,-500.0,0.00040821,2]
[341210319,1730646698737,-239.70319277,0.00040821,2]
[341210320,1730646698746,-451725.89042993,0.00041,30]
[341210321,1730646698755,-231.46876735,0.00041,21]
[341210322,1730646698764,-200813.18080423,0.00041,60]
[341210323,1730646698774,-750.0,0.00041,2]
[341210324,1730646698783,-519.54,0.0004102,2]
[341210325,1730646698792,-1578.7,0.00041025,2]
[341210326,1730646698802,-750.0,0.0004106,4]
[341210327,1730646698811,-171.25984588,0.00041071,2]
[341210328,1730646698820,-500.0,0.00041095,120]
[341210329,1730646698829,-500.0,0.00041095,120]
[341210330,1730646698838,-440.36565573,0.00041095,120]
[341210331,1730646698847,-500.0,0.00041095,120]
[341210332,1730646698856,-500.0,0.00041095,120]
[341210333,1730646698867,-500.0,0.00041095,120]
[341210334,1730646698875,-500.0,0.00041095,120]
[341210335,1730646698884,-500.0,0.00041095,120]
[341210336,1730646698894,-500.0,0.00041095,120]
[341210337,1730646698904,-500.0,0.00041095,120]
[341210338,1730646698912,-500.0,0.00041095,120]
[341210339,1730646698922,-500.0,0.00041095,120]
[341210340,1730646698931,-500.0,0.00041095,120]
[341210341,1730646698940,-500.0,0.00041095,120]
[341210342,1730646698949,-500.0,0.00041095,120]
[341210343,1730646698958,-500.0,0.00041095,120]
[341210344,1730646698967,-364.01917212,0.00041095,120]
[341210345,1730646698976,-2000.0,0.00041095,2]
[341210346,1730646698985,-1488.5,0.00041095,2]
[341210347,1730646698995,-956.1,0.00041095,7]
[341210348,1730646699004,-906.58,0.00041095,2]
[341210349,1730646699013,-184.42927393,0.00041095,2]
[341210350,1730646699023,-500.0,0.00041095,2]
[341210351,1730646699032,-500.0,0.00041095,2]
[341210352,1730646699041,-500.0,0.00041095,2]
[341210353,1730646699051,-500.0,0.00041095,2]
[341210354,1730646699060,-500.0,0.00041095,2]
[341210355,1730646699070,-1281.51,0.00041095,2]
[341210356,1730646699079,-250.0,0.00041095,2]
[341210357,1730646699089,-500.0,0.00041095,2]
[341210358,1730646699098,-500.0,0.00041095,2]
[341210359,1730646699108,-798.34,0.00041095,2]
[341210360,1730646699119,-500.0,0.00041095,2]
[341210361,1730646699128,-500.0,0.00041095,2]
[341210362,1730646699137,-1672.57,0.00041095,2]
[341210363,1730646699266,-500.0,0.00041095,2]
[341210364,1730646699276,-500.0,0.00041095,2]
[341210365,1730646699286,-500.0,0.00041095,2]
[341210366,1730646699296,-500.0,0.00041095,2]
[341210367,1730646699305,-500.0,0.00041095,2]
[341210368,1730646699315,-500.0,0.00041095,2]
[341210369,1730646699325,-500.0,0.00041095,2]
[341210370,1730646699335,-503.91,0.00041095,2]
[341210371,1730646699347,-375.19647762,0.00041095,2]
[341210372,1730646699356,-500.0,0.00041095,2]
[341210373,1730646699367,-513.38,0.00041095,2]
[341210374,1730646699376,-500.0,0.00041095,2]
[341210375,1730646699385,-2000.0,0.00041095,2]
[341210376,1730646699394,-500.0,0.00041095,2]
[341210377,1730646699403,-500.0,0.00041095,2]
[341210378,1730646699413,-500.0,0.00041095,2]
[341210379,1730646699423,-500.0,0.00041095,2]
[341210380,1730646699432,-500.0,0.00041095,2]
[341210381,1730646699441,-528.37043876,0.00041095,2]
[341210382,1730646699451,-500.0,0.00041095,2]
[341210383,1730646699460,-524.41947891,0.00041095,2]
[341210384,1730646699470,-500.0,0.00041095,2]
[341210385,1730646699479,-500.0,0.00041095,2]
[341210386,1730646699489,-469.14188644,0.00041095,2]
[341210387,1730646699498,-1147.15,0.00041095,2]
[341210388,1730646699507,-555.99725202,0.00041095,2]
[341210389,1730646699516,-908.15,0.00041095,2]
[341210390,1730646699526,-7500.0,0.00041095,120]
[341210391,1730646699536,-577.79680609,0.00041095,120]
[341210392,1730646699546,-10956.67,0.00041095,2]
[341210393,1730646699555,-500.0,0.00041095,2]
[341210394,1730646699566,-500.0,0.00041095,2]
[341210395,1730646699576,-500.0,0.00041095,2]
[341210396,1730646699586,-602.99,0.00041095,2]
[341210397,1730646699597,-2667.98,0.00041095,120]
[341210398,1730646699606,-691.73,0.00041095,2]
[341210399,1730646699617,-223.49861023,0.00041095,2]
[341210400,1730646699627,-769.94,0.00041095,2]
[341210401,1730646699637,-500.0,0.00041095,2]
[341210402,1730646699648,-500.0,0.00041095,2]
[341210403,1730646699658,-660.29,0.00041095,2]
[341210404,1730646699668,-684.44,0.00041095,2]
[341210405,1730646699678,-500.0,0.00041095,2]
[341210406,1730646699688,-3893.36,0.00041095,2]
[341210407,1730646699697,-500.0,0.00041095,2]
[341210408,1730646699706,-627.36,0.00041095,2]
[341210409,1730646699716,-1238.57,0.00041095,2]
[341210410,1730646699726,-1845.76,0.00041095,2]
[341210411,1730646699735,-963.64,0.00041095,2]
[341210412,1730646699745,-463.32858452,0.00041095,30]
[341210413,1730646699754,-500.0,0.00041095,2]
[341210414,1730646699764,-500.0,0.00041095,2]
[341210415,1730646699774,-500.0,0.00041095,2]
[341210416,1730646699783,-5855.7,0.00041095,2]
[341210417,1730646699792,-1805.52,0.00041095,2]
[341210418,1730646699802,-602.78,0.00041095,2]
[341210419,1730646699811,-1176.28,0.00041095,2]
[341210420,1730646699820,-500.0,0.00041095,2]
[341210421,1730646699830,-500.0,0.00041095,2]
[341210422,1730646699841,-500.0,0.00041095,2]
[341210423,1730646699850,-1152.43,0.00041095,2]
[341210424,1730646699861,-574.43388635,0.00041095,2]
[341210425,1730646699874,-1221.41,0.00041095,2]
[341210426,1730646699889,-3349.02,0.00041095,2]
[341210427,1730646699898,-1633.72,0.00041095,2]
[341210428,1730646699907,-1238.48,0.00041095,2]
[341210429,1730646699917,-500.0,0.00041095,2]
[341210430,1730646699926,-500.0,0.00041095,2]
[341210431,1730646699935,-500.0,0.00041095,2]
[341210432,1730646699945,-3905.42,0.00041095,2]
[341210433,1730646699955,-500.0,0.00041095,2]
[341210434,1730646699964,-1373.97,0.00041095,2]
[341210435,1730646699974,-500.0,0.00041095,2]
[341210436,1730646699983,-5000.0,0.00041096,120]
[341210437,1730646699993,-4000.0,0.00041096,30]
[341210438,1730646700002,-150.0,0.00041096,2]
[341210439,1730646700012,-1000.0,0.00041096,13]
[341210440,1730646700022,-1000.0,0.00041096,13]
[341210441,1730646700032,-478.0,0.00041096,13]
[341210442,1730646700043,-157.0,0.00041096,2]
[341210443,1730646700052,-546.0,0.00041096,13]
[341210444,1730646700062,-1000.0,0.00041096,120]
[341210445,1730646700073,-5000.0,0.000411,2]
[341210446,1730646700082,-449.0,0.000411,2]
[341210447,1730646700091,-551.0,0.000411,2]
[341210448,1730646700100,-1925.0,0.000411,2]
[341210449,1730646700109,-187.0,0.000411,2]
[341210450,1730646700123,-182.45052197,0.000411,2]
[341210451,1730646700132,-27001.82663713,0.0004111,2]
[341210452,1730646700141,-1000.0,0.00041112,120]
[341210453,1730646700150,-1000.0,0.00041129,120]
[341210454,1730646700159,-1000.0,0.00041146,120]
[341210455,1730646700168,-5000.0,0.00041155,2]
[341210456,1730646700177,-1000.0,0.00041162,120]
[341210457,1730646700187,-1000.0,0.00041179,120]
[341210458,1730646700196,-5000.0,0.0004119,2]
[341210459,1730646700205,-4444.71,0.0004119,2]
[341210460,1730646700214,-1000.0,0.00041196,120]
[341210461,1730646700223,-1000.0,0.00041212,120]
[341210462,1730646700232,-1000.0,0.00041229,120]
[341210463,1730646700243,-5000.0,0.00041238,2]
[341210464,1730646700252,-1000.0,0.00041245,120]
[341210465,1730646700263,-1000.0,0.00041262,120]
[341210466,1730646700272,-1000.0,0.00041279,120]
[341210467,1730646700281,-1000.0,0.00041295,120]
[341210468,1730646700290,-1000.0,0.00041312,120]
[341210469,1730646700301,-5000.0,0.00041315,2]
[341210470,1730646700311,-1000.0,0.00041328,120]
[341210471,1730646700326,-1000.0,0.00041345,120]
[341210472,1730646700337,-1000.0,0.00041362,120]
[341210473,1730646700347,-1488.5,0.00041369,2]
[341210474,1730646700358,-956.1,0.00041369,7]
[341210475,1730646700370,-906.58,0.00041369,2]
[341210476,1730646700380,-500.0,0.00041369,2]
[341210477,1730646700390,-500.0,0.00041369,2]
[341210478,1730646700400,-500.0,0.00041369,2]
[341210479,1730646700410,-500.0,0.00041369,2]
[341210480,1730646700419,-545.84159822,0.00041369,2]
[341210481,1730646700428,-1281.51,0.00041369,2]
[341210482,1730646700438,-250.0,0.00041369,2]
[341210483,1730646700448,-500.0,0.00041369,2]
[341210484,1730646700457,-500.0,0.00041369,2]
[341210485,1730646700467,-798.34,0.00041369,2]
[341210486,1730646700476,-500.0,0.00041369,2]
[341210487,1730646700486,-500.0,0.00041369,2]
[341210488,1730646700495,-1672.57,0.00041369,2]
[341210489,1730646700504,-247.75379974,0.00041369,2]
[341210490,1730646700513,-573.55244397,0.00041369,2]
[341210491,1730646700523,-500.0,0.00041369,2]
[341210492,1730646700532,-500.0,0.00041369,2]
[341210493,1730646700541,-500.0,0.00041369,2]
[341210494,1730646700551,-500.0,0.00041369,2]
[341210495,1730646700560,-500.0,0.00041369,2]
[341210496,1730646700570,-503.91,0.00041369,2]
[341210497,1730646700580,-500.0,0.00041369,2]
[341210498,1730646700590,-513.38,0.00041369,2]
[341210499,1730646700599,-500.0,0.00041369,2]
[341210500,1730646700609,-1675.43164455,0.00041369,2]
[341210501,1730646700622,-500.0,0.00041369,2]
[341210502,1730646700631,-1147.15,0.00041369,2]
[341210503,1730646700640,-908.15,0.00041369,2]
[341210504,1730646700650,-10956.67,0.00041369,2]
[341210505,1730646700659,-500.0,0.00041369,2]
[341210506,1730646700669,-500.0,0.00041369,2]
[341210507,1730646700679,-500.0,0.00041369,2]
[341210508,1730646700689,-602.99,0.00041369,2]
[341210509,1730646700701,-691.73,0.00041369,2]
[341210510,1730646700711,-769.94,0.00041369,2]
[341210511,1730646700720,-500.0,0.00041369,2]
[341210512,1730646700730,-500.0,0.00041369,2]
[341210513,1730646700739,-660.29,0.00041369,2]
[341210514,1730646700748,-684.44,0.00041369,2]
[341210515,1730646700758,-500.0,0.00041369,2]
[341210516,1730646700767,-3893.36,0.00041369,2]
[341210517,1730646700776,-500.0,0.00041369,2]
[341210518,1730646700785,-627.36,0.00041369,2]
[341210519,1730646700794,-1238.57,0.00041369,2]
[341210520,1730646700803,-1845.76,0.00041369,2]
[341210521,1730646700812,-963.64,0.00041369,2]
[341210522,1730646700821,-500.0,0.00041369,2]
[341210523,1730646700831,-358.02541085,0.00041369,2]
[341210524,1730646700840,-500.0,0.00041369,2]
[341210525,1730646700848,-5855.7,0.00041369,2]
[341210526,1730646700858,-1805.52,0.00041369,2]
[341210527,1730646700869,-602.78,0.00041369,2]
[341210528,1730646700878,-1176.28,0.00041369,2]